bitfinex/quotes_ETHUSD_20251015
["timestamp","ask_amount","ask_price","bid_price","bid_amount"]
[1760535821063,1.728,4090.2,4089.4,2.44528965]
[1760535821349,1.728,4090.2,4089.2,2.44543045]
[1760535821547,1.728,4090.2,4088.6,0.2327]
[1760535821750,1.728,4090.2,4089.1,2.44550812]
[1760535821979,0.1226,4090.8,4089.4,2.44531458]
[1760535821980,2.588,4090.1,4089.4,2.44531458]
[1760535822201,2.588,4090.0,4089.2,2.92270937]
[1760535822382,2.588,4090.0,4089.7,2.44515544]
[1760535822560,2.588,4090.0,4089.2,2.69001022]
[1760535822760,2.588,4090.0,4089.9,2.44504755]
[1760535822964,0.1226,4090.8,4090.1,2.44491796]
[1760535823167,2.44464202,4090.6,4089.2,0.70475081]
[1760535823365,4.316,4090.7,4089.2,0.70475081]
[1760535823366,6.76057965,4090.7,4089.9,2.44502924]
[1760535823574,2.588,4090.6,4090.1,2.44490146]
[1760535823777,1.728,4090.5,4089.2,0.4602]
[1760535824074,1.728,4090.5,4090.0,2.44497007]
[1760535824265,0.099,4090.4,4089.4,2.44529821]
[1760535824605,2.44486437,4090.3,4089.2,2.44545034]
[1760535824805,1.728,4090.3,4088.6,0.2327]
[1760535824961,2.44509419,4089.9,4089.0,2.44557525]
[1760535825166,2.588,4089.8,4089.2,2.44541871]
[1760535825360,2.588,4089.8,4089.2,0.24454187]
[1760535825677,2.588,4089.8,4089.5,2.44527363]
[1760535825873,2.588,4089.8,4088.6,0.2327]
[1760535826263,2.588,4089.8,4088.7,0.4602]
[1760535826662,2.588,4089.8,4089.2,2.44545008]
[1760535826866,2.588,4089.8,4088.0,0.2211]
[1760535826867,0.099,4089.7,4088.0,0.2211]
[1760535827099,0.099,4089.7,4087.8,0.2327]
[1760535827100,1.728,4089.4,4087.8,0.2327]
[1760535827411,0.2121,4089.6,4087.8,0.2327]
[1760535827412,0.113,4089.6,4088.1,0.2327]
[1760535827641,1.728,4089.4,4088.2,1.19085387]
[1760535827780,1.728,4089.5,4088.2,1.19085387]
[1760535827977,2.589,4089.4,4088.3,0.02446004]
[1760535828184,2.589,4089.4,4089.0,2.44556663]
[1760535828392,0.113,4089.6,4088.4,0.4602]
[1760535828584,2.589,4089.3,4089.2,2.44542441]
[1760535829017,2.589,4089.3,4088.5,0.22846539]
[1760535829210,2.589,4089.3,4089.2,0.1216]
[1760535829384,2.6883,4089.3,4089.2,0.1216]
[1760535829780,2.589,4089.3,4089.2,2.44542108]
[1760535829984,2.589,4089.3,4089.2,2.56702108]
[1760535830212,2.589,4089.3,4089.2,0.1216]
[1760535830412,0.1128,4089.8,4089.2,0.1216]
[1760535830589,1.728,4089.6,4089.2,0.1216]
[1760535830830,1.728,4089.6,4088.5,0.4602]
[1760535830998,1.728,4089.6,4089.5,0.1216]
[1760535831300,2.589,4089.6,4089.5,0.1216]
[1760535831615,2.44548474,4089.2,4088.1,2.44606691]
[1760535831915,2.44548474,4089.2,4088.9,0.1216]
[1760535831916,2.44558571,4089.0,4088.9,0.1216]
[1760535832079,1.728,4088.9,4087.8,0.002]
[1760535832276,2.44594462,4088.4,4087.8,0.002]
[1760535832483,14.61498679,4087.9,4087.8,0.002]
[1760535832710,14.61498679,4087.9,4087.4,0.002]
[1760535832711,7.75259118,4087.5,4087.4,0.002]
[1760535833019,7.75259118,4087.5,4083.1,0.2455]
[1760535833020,2.44696209,4086.7,4085.0,2.68067066]
[1760535833320,6.76396209,4086.7,4085.0,0.2327]
[1760535833613,6.86296209,4086.7,4085.3,2.44777374]
[1760535833783,6.86296209,4086.7,4084.6,0.4602]
[1760535833784,6.86296209,4086.7,4085.6,2.44757447]
[1760535833983,6.86296209,4086.7,4084.8,2.44804847]
[1760535834183,6.86296209,4086.7,4085.4,2.4476836]
[1760535834436,4.317,4086.7,4085.4,2.44770765]
[1760535834631,6.76396209,4086.7,4085.5,2.44764717]
[1760535834834,6.76396209,4086.7,4084.6,2.44821831]
[1760535835022,5.03596209,4086.7,4084.5,2.44827264]
[1760535835228,4.17496209,4086.7,4085.3,2.44774963]
[1760535835538,6.76496209,4086.7,4085.4,2.44773125]
[1760535835736,4.318,4086.7,4084.5,2.44825042]
[1760535835930,4.318,4086.7,4085.8,2.44746077]
[1760535836136,4.318,4086.7,4085.1,2.44786585]
[1760535836446,4.318,4086.7,4084.8,0.6336]
[1760535836613,4.318,4086.7,4085.0,2.44792483]
[1760535836813,1.728,4086.7,4085.3,2.44777735]
[1760535837013,1.101,4088.1,4086.2,0.02647261]
[1760535837214,3.943,4088.0,4087.0,2.4467348]
[1760535837414,3.943,4088.0,4086.2,0.002]
[1760535837415,2.44696209,4086.7,4086.2,0.002]
[1760535837614,6.76496209,4086.7,4086.2,0.002]
[1760535838153,11.22818509,4086.7,4086.2,0.002]
[1760535838510,19.28124009,4086.7,4086.2,0.002]
[1760535838837,16.71300909,4086.7,4086.2,0.002]
[1760535839031,13.96099809,4086.7,4086.2,0.002]
[1760535839434,3.08080162,4086.3,4086.2,1e-08]
[1760535839644,20.50062062,4086.3,4086.2,1e-08]
[1760535839843,17.0227041,4085.8,4085.7,1e-08]
[1760535840143,19.6137041,4085.8,4085.7,1e-08]
[1760535840321,10.0625431,4085.8,4085.7,1e-08]
[1760535840505,9.8633911,4085.8,4085.7,1e-08]
[1760535840706,7.4001011,4085.8,4085.7,1e-08]
[1760535840931,10.1601661,4085.8,4085.7,1e-08]
[1760535841518,9.5305191,4085.8,4085.7,1e-08]
[1760535843614,9.9394751,4085.8,4085.7,1e-08]
[1760535843810,7.8685011,4085.8,4085.7,1e-08]
[1760535844016,2.44584678,4088.6,4085.7,1e-08]
[1760535844216,0.1216,4086.3,4085.7,0.12160001]
[1760535844411,2.592,4086.2,4085.7,0.12160001]
[1760535844745,0.1216,4086.8,4086.1,0.1216]
[1760535844946,2.44726151,4086.2,4086.1,0.1216]
[1760535845119,2.44742845,4086.0,4085.7,1e-08]
[1760535845313,1.728,4086.1,4085.7,0.12160001]
[1760535845518,8.1786621,4085.8,4085.7,1e-08]
[1760535845749,7.3372611,4085.8,4085.7,1e-08]
[1760535845975,7.4588611,4085.8,4085.7,1e-08]
[1760535846151,2.5691011,4085.8,4085.7,1e-08]
[1760535846467,1.162,4086.2,4085.7,1e-08]
[1760535846837,1.162,4086.2,4085.7,0.25692042]
[1760535847037,2.4473214,4086.1,4086.0,0.1216]
[1760535847370,4.2971011,4085.8,4085.7,1e-08]
[1760535847556,1.728,4085.8,4085.7,1e-08]
[1760535847871,4.1755011,4085.8,4085.7,1e-08]
[1760535848035,6.5689421,4085.8,4085.7,1e-08]
[1760535848236,2.44780065,4085.3,4085.2,1e-08]
[1760535848452,11.88876765,4085.3,4085.2,1e-08]
[1760535848773,4.32,4085.3,4085.2,1e-08]
[1760535848933,10.43694365,4085.3,4085.2,1e-08]
[1760535849134,4.32,4085.3,4085.2,1e-08]
[1760535849339,9.87847665,4085.3,4085.2,1e-08]
[1760535850469,20.63661265,4085.3,4085.2,1e-08]
[1760535850671,12.40618165,4085.3,4085.2,1e-08]
[1760535850969,10.03377465,4085.3,4085.2,1e-08]
[1760535851361,2.44864918,4083.9,4083.4,0.002]
[1760535851564,2.44887963,4083.5,4083.4,0.002]
[1760535852272,1.728,4083.7,4083.4,0.002]
[1760535852773,2.592,4083.8,4083.5,2.44887963]
[1760535852939,2.592,4083.8,4083.6,0.48998243]
[1760535853136,2.592,4083.8,4083.4,0.002]
[1760535854491,1.728,4083.7,4083.4,0.002]
[1760535854868,5.04075093,4083.8,4083.4,0.002]
[1760535855070,2.592,4083.8,4083.4,0.002]
[1760535855275,2.592,4083.8,4083.6,2.4488157]
[1760535855475,2.592,4083.8,4083.6,0.24508157]
[1760535855677,2.44887963,4083.5,4083.4,0.002]
[1760535856193,30.0,4084.5,4083.4,0.002]
[1760535856397,2.44887963,4083.5,4083.4,0.002]
[1760535856567,21.29601963,4083.5,4083.4,0.002]
[1760535856893,21.29601963,4083.5,4082.9,0.002]
[1760535856894,3.08277952,4083.0,4082.9,1e-08]
[1760535857230,7.40477952,4083.0,4082.9,1e-08]
[1760535857576,10.60702052,4083.0,4082.9,1e-08]
[1760535857976,9.86402052,4083.0,4082.9,1e-08]
[1760535859279,9.53468252,4083.0,4082.9,1e-08]
[1760535859477,8.90108252,4083.0,4082.9,1e-08]
[1760535859677,9.53468252,4083.0,4082.9,1e-08]
[1760535861602,6.77117952,4083.0,4082.9,1e-08]
[1760535861814,5.04317952,4083.0,4082.9,1e-08]
[1760535862010,4.663668,4084.4,4083.0,2.44911968]
[1760535862220,2.44858585,4084.0,4083.1,2.93895716]
[1760535862385,2.44869974,4083.8,4083.1,0.48984021]
[1760535862710,1.728,4083.6,4083.1,0.48984021]
[1760535862921,2.44895128,4083.4,4082.9,1e-08]
[1760535863207,2.597,4083.7,4082.9,1e-08]
[1760535863208,1.728,4083.2,4082.9,1e-08]
[1760535863376,1.103,4084.5,4082.9,1e-08]
[1760535863577,2.596,4084.4,4082.9,1e-08]
[1760535863807,2.44844496,4084.3,4082.9,1e-08]
[1760535864008,2.596,4084.4,4082.9,1e-08]
[1760535864009,2.596,4084.4,4083.0,2.44917952]
[1760535864209,2.596,4084.4,4083.1,2.44911954]
[1760535864409,2.596,4084.4,4083.0,2.44917952]
[1760535864740,2.596,4084.4,4083.3,2.4489661]
[1760535864881,2.596,4084.4,4082.9,0.2449375]
[1760535865082,2.596,4084.4,4082.9,1e-08]
[1760535865918,3.874993,4084.2,4082.9,1e-08]
[1760535866118,2.44868592,4083.9,4083.0,2.44917952]
[1760535866297,2.595,4083.8,4083.2,2.4490001]
[1760535866498,2.595,4083.8,4083.3,2.44896469]
[1760535866701,2.595,4083.8,4083.4,0.24489647]
[1760535866903,2.595,4083.8,4082.9,1e-08]
[1760535867207,2.595,4083.8,4083.3,2.44899484]
[1760535867524,2.595,4083.8,4082.9,1e-08]
[1760535867742,2.595,4083.8,4083.3,2.44898448]
[1760535868033,2.595,4083.8,4082.9,1e-08]
[1760535868235,2.595,4083.8,4083.2,2.44900915]
[1760535868550,2.595,4083.8,4082.9,2.44922523]
[1760535868551,2.595,4083.8,4082.9,1e-08]
[1760535868853,5.04372555,4083.8,4082.9,1e-08]
[1760535869037,2.44886778,4083.6,4082.9,1e-08]
[1760535869441,2.595,4083.8,4082.9,1e-08]
[1760535869757,2.595,4083.8,4083.5,0.1224]
[1760535870748,0.001,4084.4,4084.3,2.44839997]
[1760535871045,2.595,4084.4,4084.3,2.44839997]
[1760535871545,2.595,4084.4,4084.3,3.08199997]
[1760535871716,3.54966744,4087.2,4084.8,2.44810027]
[1760535871913,1.103,4087.2,4084.8,2.44810027]
[1760535872116,2.44692722,4086.8,4084.8,2.44810027]
[1760535872308,2.44702904,4086.6,4084.8,3.08170027]
[1760535872535,2.44697906,4086.7,4084.8,3.08170027]
[1760535872744,1.103,4087.2,4084.8,3.08170027]
[1760535873049,1.728,4086.6,4084.8,3.08170027]
[1760535873249,2.44714353,4086.4,4084.8,3.08170027]
[1760535873412,2.217,4084.9,4084.8,3.08170027]
[1760535873618,0.001,4084.9,4084.8,4.83418127]
[1760535874039,0.001,4084.9,4084.8,4.80970027]
[1760535874265,0.001,4084.9,4084.8,5.53548827]
[1760535874766,2.35,4084.9,4084.8,5.53548827]
[1760535875730,1.103,4087.2,4085.2,3.08146056]
[1760535876134,1.728,4087.1,4085.2,3.08146056]
[1760535876340,4.17472421,4087.1,4085.2,3.08146056]
[1760535876549,1.728,4087.1,4085.2,3.08146056]
[1760535876853,2.44704765,4086.6,4085.2,2.44786056]
[1760535877158,2.216,4085.3,4085.2,2.44786056]
[1760535877822,2.216,4085.3,4085.2,2.93744217]
[1760535879654,2.216,4085.3,4084.8,0.725788]
[1760535879833,2.216,4085.3,4082.4,2.4514875]
[1760535879834,2.216,4085.3,4084.9,2.44801696]
[1760535880033,2.216,4085.3,4085.2,2.44786056]
[1760535880753,2.216,4085.3,4085.2,2.56946056]
[1760535880955,2.216,4085.3,4085.2,0.1216]
[1760535881258,2.216,4085.3,4085.2,2.56946056]
[1760535881455,2.216,4085.3,4085.2,3.07120445]
[1760535881825,2.216,4085.3,4085.2,0.62334389]
[1760535882056,2.216,4085.3,4085.2,0.1216]
[1760535882358,2.216,4085.3,4085.2,2.56946056]
[1760535882556,2.216,4085.3,4085.2,0.1216]
[1760535882760,2.216,4085.3,4085.2,2.56946056]
[1760535883143,2.216,4085.3,4085.2,0.1216]
[1760535883443,2.216,4085.3,4085.2,2.56946056]
[1760535883650,2.216,4085.3,4085.2,0.1216]
[1760535883956,2.216,4085.3,4085.2,2.56946056]
[1760535884166,4.66380065,4085.3,4085.2,0.1216]
[1760535884324,4.66380065,4085.3,4083.1,2.44907739]
[1760535884325,3.944,4085.3,4083.1,2.44907739]
[1760535884524,3.944,4085.3,4082.9,1e-08]
[1760535884525,2.44805191,4084.9,4084.8,0.1224]
[1760535884723,1.728,4085.2,4084.8,0.1224]
[1760535884724,2.44786371,4085.2,4084.8,0.1224]
[1760535885156,2.216,4085.3,4084.9,2.44799503]
[1760535885356,2.216,4085.3,4085.1,0.1216]
[1760535885737,2.2152,4085.3,4085.2,0.1216]
[1760535885940,2.2152,4085.3,4085.2,2.56946056]
[1760535886149,2.2152,4085.3,4085.2,2.82640662]
[1760535888264,2.2152,4085.3,4085.2,2.56946056]
[1760535889966,2.2152,4085.3,4085.2,2.44786056]
[1760535890730,2.215,4085.3,4085.2,2.44786056]
[1760535890965,0.001,4085.8,4085.7,2.447561]
[1760535892047,2.563,4085.8,4085.7,2.447561]
[1760535892369,2.563,4085.8,4085.7,2.93708128]
[1760535893567,0.001,4086.2,4086.1,2.4473214]
[1760535894435,0.001,4086.2,4086.1,3.0809214]
[1760535895348,1.103,4087.2,4087.1,2.44672261]
[1760535895961,1.103,4087.2,4085.4,2.4477148]
[1760535896149,1.103,4087.2,4087.1,2.44672261]
[1760535896668,3.695,4087.2,4087.1,2.44672261]
[1760535896871,3.695,4087.2,4085.9,1.728]
[1760535897076,3.695,4087.2,4086.7,2.4469394]
[1760535897647,3.695,4087.2,4085.8,0.46650813]
[1760535897648,3.695,4087.2,4085.8,2.19450813]
[1760535897980,3.695,4087.2,4085.4,1.728]
[1760535897981,3.695,4087.2,4085.9,0.46420509]
[1760535898279,3.695,4087.2,4085.9,0.6336]
[1760535898451,3.695,4087.2,4087.0,2.44673905]
[1760535898652,2.592,4087.2,4086.8,2.44685786]
[1760535898946,2.592,4087.2,4087.1,2.44672261]
[1760535899146,2.592,4087.2,4087.1,0.6336]
[1760535899483,2.44726794,4086.2,4082.2,2.44965459]
[1760535899788,1.728,4086.0,4085.0,2.44796254]
[1760535899946,2.44749044,4085.9,4085.0,2.44792372]
[1760535900147,2.591,4086.1,4085.9,0.1216]
[1760535900390,5.03832505,4086.1,4085.9,0.1216]
[1760535900679,2.592,4086.0,4085.7,2.44751202]
[1760535900852,2.592,4085.9,4085.7,2.44751202]
[1760535901247,2.592,4085.9,4085.8,2.4475011]
[1760535901491,2.592,4085.9,4085.8,2.93701306]
[1760535901700,0.001,4087.2,4086.5,2.44702802]
[1760535901904,2.592,4087.1,4085.8,0.48951196]
[1760535902046,2.592,4087.1,4085.3,2.44979873]
[1760535902047,0.001,4087.2,4086.0,0.6336]
[1760535902247,2.593,4087.1,4086.4,2.44710445]
[1760535902472,2.593,4087.1,4086.2,2.44725865]
[1760535902674,2.593,4087.1,4085.5,0.6336]
[1760535902866,2.593,4087.1,4085.9,0.6336]
[1760535903186,2.593,4087.1,4087.0,2.44678248]
[1760535903558,2.593,4087.1,4087.0,3.08038248]
[1760535904262,0.001,4087.2,4087.1,4.80832261]
[1760535905466,2.597,4087.2,4087.1,4.80832261]
[1760535906002,0.001,4087.7,4087.6,3.08002332]
[1760535906178,0.001,4087.7,4087.6,3.63267644]
[1760535907799,0.001,4087.7,4087.6,5.36067644]
[1760535909287,0.0002,4087.7,4087.6,5.36067644]
[1760535910701,0.0002,4087.7,4087.6,5.48227644]
[1760535911601,0.0002,4087.7,4087.6,4.84867644]
[1760535911801,0.0002,4087.7,4087.6,4.29602332]
[1760535912015,0.0002,4087.7,4087.6,2.56802332]
[1760535913208,0.0002,4087.7,4087.6,3.20162332]
[1760535914672,0.0002,4087.7,4087.6,2.56802332]
[1760535915901,0.0002,4087.7,4087.6,3.20162332]
[1760535916209,0.0002,4087.7,4087.6,3.76643609]
[1760535916570,0.0002,4087.7,4087.6,5.49443609]
[1760535917324,0.3448,4089.6,4088.2,0.6336]
[1760535917535,0.001,4089.6,4089.3,2.44539943]
[1760535917686,0.099,4089.5,4089.4,2.4453465]
[1760535918037,0.001,4089.6,4089.5,3.0788867]
[1760535918189,0.001,4089.6,4089.5,5.28968653]
[1760535918384,0.001,4089.6,4089.5,5.2697867]
[1760535918583,0.001,4089.6,4089.5,4.8068867]
[1760535919026,0.001,4089.6,4089.5,5.3913867]
[1760535919319,0.001,4089.6,4089.5,6.22090349]
[1760535919718,0.001,4089.6,4089.5,5.75800349]
[1760535920204,0.001,4089.6,4089.5,6.22090349]
[1760535920582,0.001,4089.6,4089.5,5.75800349]
[1760535921409,0.001,4089.6,4089.5,6.09930349]
[1760535921725,0.001,4089.6,4089.5,6.22090349]
[1760535922720,0.001,4089.6,4089.5,5.75800349]
[1760535922896,0.001,4089.6,4089.5,6.22090349]
[1760535923513,0.099,4091.9,4091.8,2.44391221]
[1760535923701,0.1002,4092.4,4091.9,2.44385248]
[1760535924421,0.099,4093.0,4090.1,2.44490877]
[1760535924621,0.2226,4092.0,4090.9,0.6336]
[1760535924826,2.443959,4091.8,4090.4,1.728]
[1760535924991,0.1217,4090.5,4089.0,5.49745905]
[1760535925190,2.66512775,4091.8,4091.0,2.44436054]
[1760535925386,0.2212,4091.8,4091.3,2.44416655]
[1760535925599,1.145,4091.9,4090.3,1.728]
[1760535925897,1.145,4091.9,4091.6,2.44402609]
[1760535926211,1.145,4091.9,4091.5,2.44404996]
[1760535926410,0.099,4091.8,4090.0,1.728]
[1760535926630,0.099,4091.7,4090.2,1.728]
[1760535926927,0.099,4091.7,4091.2,2.44426637]
[1760535927126,0.099,4091.6,4091.1,2.44430704]
[1760535927293,1.145,4091.9,4090.5,0.6336]
[1760535927499,1.145,4091.9,4091.4,2.44409165]
[1760535927692,1.244,4091.9,4091.5,2.4440695]
[1760535927907,1.244,4091.9,4090.7,3.07811708]
[1760535927908,1.145,4091.9,4090.7,3.07811708]
[1760535928108,1.145,4091.9,4091.8,2.44391221]
[1760535928828,1.2674,4091.9,4091.7,2.44393345]
[1760535929214,1.2674,4091.9,4091.6,2.44401606]
[1760535929535,1.2674,4091.9,4091.7,2.44395186]
[1760535929733,1.2674,4091.9,4091.8,2.44391221]
[1760535929734,1.145,4091.9,4091.8,2.44391221]
[1760535929896,1.145,4091.9,4091.2,0.6336]
[1760535930231,1.145,4091.9,4091.8,2.44391221]
[1760535930591,1.145,4091.9,4091.3,0.26285031]
[1760535930821,1.145,4091.9,4090.6,0.40896]
[1760535930822,1.145,4091.9,4091.8,2.44391221]
[1760535931026,1.145,4091.9,4090.7,2.44456938]
[1760535931027,1.145,4091.9,4091.7,2.4439436]
[1760535931192,1.145,4091.9,4091.2,0.6336]
[1760535931397,1.145,4091.9,4091.8,2.44391221]
[1760535932002,2.588,4091.9,4091.5,0.4629]
[1760535932221,2.588,4091.9,4091.8,3.07751221]
[1760535932841,0.0982,4093.0,4092.3,2.44355574]
[1760535933028,0.099,4092.9,4091.0,0.6336]
[1760535933228,0.099,4092.8,4091.1,0.28245]
[1760535933445,0.099,4092.7,4091.3,2.44421088]
[1760535933613,2.443658,4092.3,4091.6,2.44402823]
[1760535933808,0.099,4092.7,4091.4,2.44409981]
[1760535933809,2.44372905,4092.2,4091.4,2.44409981]
[1760535934038,0.1222,4091.7,4091.1,0.28245]
[1760535934238,0.1222,4091.7,4090.5,0.2139]
[1760535934428,0.1222,4091.7,4091.6,0.1216]
[1760535934625,0.2214,4091.7,4091.6,0.1216]
[1760535934847,2.8094,4091.7,4091.6,0.1216]
[1760535935358,2.7102,4091.7,4091.6,0.1216]
[1760535935849,2.588,4091.7,4091.6,2.56563167]
[1760535936045,3.54441482,4092.7,4091.6,2.56563167]
[1760535936046,0.1977,4093.0,4092.2,2.44362991]
[1760535936248,0.1977,4093.0,4091.6,0.50097746]
[1760535936249,1.728,4092.8,4091.6,0.50097746]
[1760535936424,1.728,4092.8,4092.3,2.44357598]
[1760535936752,1.8275,4092.8,4092.3,2.4435687]
[1760535936934,1.728,4092.8,4092.5,2.44348691]
[1760535937248,2.588,4092.9,4091.3,3.07778554]
[1760535937249,2.588,4092.9,4092.6,2.44343319]
[1760535937434,2.588,4092.9,4092.6,2.44339686]
[1760535937641,0.001,4092.8,4092.7,2.44335781]
[1760535937855,0.001,4092.8,4092.5,2.44344562]
[1760535938136,0.001,4092.8,4092.5,2.44349419]
[1760535938331,0.001,4092.8,4091.7,2.44395106]
[1760535938332,0.001,4092.8,4092.6,2.44342491]
[1760535938534,0.001,4092.8,4092.7,2.44337478]
[1760535939049,0.001,4092.8,4092.7,2.46601153]
[1760535939262,0.001,4092.8,4092.7,2.89223091]
[1760535939435,0.001,4092.8,4092.7,3.51447478]
[1760535940159,0.001,4092.8,4092.6,0.4887028]
[1760535940160,0.0992,4092.8,4092.6,0.4887028]
[1760535940350,0.0992,4092.8,4092.7,2.44337478]
[1760535940715,0.0992,4092.8,4092.6,2.44342024]
[1760535940911,0.0992,4092.8,4092.0,0.6336]
[1760535941256,0.0992,4092.8,4091.5,0.2366]
[1760535941549,0.0992,4092.8,4091.2,0.2366]
[1760535941754,2.44350123,4092.5,4091.7,2.4439272]
[1760535941916,0.0992,4092.8,4091.4,0.4375]
[1760535942117,0.0992,4092.8,4092.4,2.44351604]
[1760535942344,0.0992,4092.8,4092.5,2.4434746]
[1760535942662,0.0992,4092.8,4092.5,2.44344949]
[1760535942949,0.0992,4092.8,4092.3,2.4435571]
[1760535943116,0.001,4092.8,4092.5,2.4434765]
[1760535943323,0.001,4092.8,4091.9,1.728]
[1760535943675,0.001,4092.8,4091.8,0.4375]
[1760535943676,0.001,4092.8,4091.5,0.1318617]
[1760535943849,0.1217,4091.9,4091.7,2.44395786]
[1760535944055,2.587,4091.8,4091.4,2.44413679]
[1760535944225,2.587,4091.8,4090.9,0.2366]
[1760535944432,2.587,4091.8,4091.1,0.2366]
[1760535944667,2.587,4091.8,4091.5,2.44408466]
[1760535944864,2.587,4091.8,4091.6,2.44400621]
[1760535945156,2.587,4091.8,4091.5,2.44404231]
[1760535945460,0.0996,4091.7,4091.3,2.44419969]
[1760535945628,2.587,4091.8,4091.1,0.2366]
[1760535945827,2.587,4091.8,4091.2,1.728]
[1760535946028,2.587,4091.8,4091.7,0.1216]
[1760535946354,2.587,4091.8,4091.7,2.56557194]
[1760535946749,2.587,4091.8,4091.7,0.1216]
[1760535947667,2.6869,4091.8,4091.7,0.1216]
[1760535947856,5.13081221,4091.8,4091.7,0.1216]
[1760535948785,12.6719919,4091.8,4089.6,0.2366]
[1760535949078,4.753681,4091.6,4089.6,0.31194646]
[1760535949377,2.44464272,4090.6,4089.8,2.44508918]
[1760535949577,2.7099,4090.5,4089.9,2.4450466]
[1760535949886,2.44482913,4090.3,4089.0,0.2366]
[1760535950187,0.1003,4090.4,4088.7,0.2366]
[1760535950371,0.1003,4090.3,4088.4,0.2366]
[1760535950689,3.71503,4089.9,4088.4,0.2366]
[1760535950995,0.1213,4088.5,4087.7,0.2366]
[1760535951148,2.587,4088.4,4088.2,0.2366]
[1760535951346,2.587,4088.3,4088.2,2.68266428]
[1760535951549,2.587,4088.3,4088.2,0.51308283]
[1760535951766,2.587,4088.3,4088.0,2.44613317]
[1760535951973,2.587,4088.3,4088.2,2.44606428]
[1760535952283,2.587,4088.3,4087.6,0.002]
[1760535952284,1.728,4088.2,4087.6,0.002]
[1760535952448,1.8285,4088.2,4087.6,0.002]
[1760535952994,4.27456428,4088.2,4087.6,0.002]
[1760535953151,10.87623328,4088.2,4087.6,0.002]
[1760535953348,4.27456428,4088.2,4087.6,0.002]
[1760535953583,7.49271428,4088.2,4087.6,0.002]
[1760535953775,6.038304,4088.2,4087.6,0.002]
[1760535953972,1.8285,4088.2,4087.6,0.002]
[1760535954185,14.83218328,4088.2,4087.6,0.002]
[1760535954484,8.55952328,4088.2,4087.7,0.002]
[1760535954871,8.24067828,4088.2,4087.7,0.002]
[1760535955075,10.33872828,4088.2,4087.7,0.002]
[1760535955477,8.81393328,4088.2,4087.7,0.002]
[1760535955678,14.97300328,4088.2,4087.7,0.002]
[1760535955864,12.80836028,4088.2,4087.7,0.002]
[1760535956057,11.59412528,4088.2,4087.7,0.002]
[1760535956388,4.27376428,4088.2,4087.7,0.002]
[1760535957291,15.15413328,4088.2,4087.7,0.002]
[1760535957466,10.08231228,4088.2,4087.7,0.002]
[1760535957868,9.83613628,4088.2,4087.7,0.002]
[1760535958094,2.44636348,4087.7,4087.6,1e-08]
[1760535958293,16.74745538,4087.7,4087.6,1e-08]
[1760535958492,16.74745538,4087.7,4087.2,0.002]
[1760535958493,2.44660289,4087.3,4087.2,0.002]
[1760535958661,16.68207989,4087.3,4087.2,0.002]
[1760535958861,4.90870289,4087.3,4087.2,0.002]
[1760535959091,7.12725689,4087.3,4087.2,0.002]
[1760535959291,4.27510289,4087.3,4087.2,0.002]
[1760535959492,10.53475689,4087.3,4087.2,0.002]
[1760535959865,11.16835689,4087.3,4087.2,0.002]
[1760535960066,13.75635689,4087.3,4087.2,0.002]
[1760535960261,10.85056396,4087.3,4087.2,0.002]
[1760535960596,9.78765589,4087.3,4087.2,0.002]
[1760535960807,11.07815089,4087.3,4087.2,0.002]
[1760535961394,12.58775089,4087.3,4087.2,0.002]
[1760535961969,3.08050222,4086.8,4086.7,0.002]
[1760535962164,32.74719663,4086.4,4085.4,0.1216]
[1760535962366,37.7677527,4086.4,4085.4,0.1216]
[1760535962564,24.4766317,4086.4,4085.4,0.1216]
[1760535962804,24.0194467,4086.4,4085.4,0.1216]
[1760535963100,21.4475437,4086.4,4085.4,0.1216]
[1760535963266,30.5025367,4086.4,4085.4,0.1216]
[1760535963464,40.9332517,4086.4,4085.3,0.002]
[1760535963670,23.96370073,4085.4,4085.3,0.002]
[1760535963898,7.7212678,4085.4,4085.3,0.002]
[1760535964100,16.0079858,4085.4,4085.3,0.002]
[1760535964402,7.7212678,4085.4,4085.3,0.002]
[1760535964569,29.3629298,4085.4,4085.3,0.002]
[1760535964905,26.6802038,4085.4,4085.3,0.002]
[1760535965069,26.7809038,4085.4,4085.3,0.002]
[1760535965676,36.4781378,4085.4,4085.3,0.002]
[1760535966291,36.4781378,4085.4,4082.8,0.2372]
[1760535966292,18.46392234,4084.9,4082.9,0.46550001]
[1760535966474,33.21104131,4084.9,4082.9,0.46550001]
[1760535966676,36.42358031,4084.9,4082.9,0.46550001]
[1760535966877,35.83165931,4084.9,4082.9,0.46550001]
[1760535967205,20.54580931,4084.9,4082.9,1e-08]
[1760535967510,2.3616,4083.9,4082.9,1e-08]
[1760535967812,1.728,4083.5,4082.9,1e-08]
[1760535967975,1.728,4083.3,4082.9,1e-08]
[1760535968174,4.17700551,4083.3,4082.9,1e-08]
[1760535968376,3.08277952,4083.0,4082.9,1e-08]
[1760535968578,25.98978342,4083.0,4082.9,1e-08]
[1760535968820,26.41461049,4083.0,4082.9,1e-08]
[1760535969173,24.72367059,4083.0,4082.9,1e-08]
[1760535969371,8.60267952,4083.0,4082.9,1e-08]
[1760535969570,19.26586659,4083.0,4082.9,1e-08]
[1760535969878,16.45476259,4083.0,4082.9,1e-08]
[1760535970100,7.85498307,4083.0,4082.9,1e-08]
[1760535970408,10.85282607,4083.0,4082.9,1e-08]
[1760535970710,11.12450059,4083.0,4082.9,1e-08]
[1760535971007,28.62315449,4083.0,4082.9,1e-08]
[1760535971211,20.56412997,4083.0,4082.9,1e-08]
[1760535971378,20.2402029,4083.0,4082.9,1e-08]